bitfinex/quotes_ETHUSD_20241129
["timestamp","ask_amount","ask_price","bid_price","bid_amount"]
[1732840938023,3.10939435,3576.4,3576.1,0.04824885]
[1732840938222,3.10939435,3576.4,3575.7,0.8185]
[1732840938535,3.10939435,3576.4,3575.9,2.79648]
[1732840938836,3.10939435,3576.4,3576.0,2.7964]
[1732840939039,3.10939435,3576.4,3576.1,2.84456885]
[1732840939255,3.56987,3576.7,3576.1,0.04824885]
[1732840939429,3.56987,3576.7,3576.1,2.79632]
[1732840939628,0.774,3576.7,3576.2,2.84447885]
[1732840939852,3.56988,3576.7,3576.2,0.04824885]
[1732840940044,3.56988,3576.7,3576.1,2.79632]
[1732840940241,2.79597,3576.6,3576.2,0.04824885]
[1732840940442,0.02089881,3576.5,3575.7,3.61512]
[1732840940761,2.79616,3576.4,3575.8,2.79655]
[1732840940947,2.79596,3576.6,3575.9,2.79644]
[1732840941450,2.79596,3576.6,3576.0,2.79637]
[1732840942168,0.55,3576.7,3576.1,2.79626]
[1732840942368,3.34587,3576.7,3576.1,2.79626]
[1732840942868,2.79614,3576.4,3575.8,2.79657]
[1732840943065,3.10939435,3576.8,3576.4,2.7961]
[1732840943228,0.754,3577.3,3576.8,2.79578]
[1732840943433,0.26021074,3577.2,3576.9,2.79571]
[1732840943738,2.79547,3577.3,3576.6,2.79592]
[1732840943941,2.79557,3577.1,3577.0,0.04824885]
[1732840944146,3.05576278,3577.1,3576.5,2.79597]
[1732840944342,2.79557,3577.1,3576.5,2.79597]
[1732840944553,0.26016884,3577.0,3576.6,0.04824885]
[1732840944758,2.79557,3577.1,3576.6,2.84418885]
[1732840944985,0.26015894,3577.0,3576.6,2.79594]
[1732840945142,0.26015894,3577.0,3576.4,0.8201]
[1732840945143,2.79557,3577.1,3576.7,0.04824885]
[1732840945343,3.05581315,3577.0,3576.7,0.04824885]
[1732840945670,2.79564,3577.0,3576.8,0.04824885]
[1732840945910,2.79564,3577.0,3576.4,3.61614]
[1732840946185,2.79571,3576.9,3576.5,0.04824885]
[1732840946477,0.7807,3577.0,3576.5,2.84426885]
[1732840946976,2.79564,3577.0,3576.5,2.84426885]
[1732840947668,3.88579435,3577.7,3576.6,0.8152]
[1732840947881,0.26018282,3577.6,3577.4,2.79525]
[1732840948077,0.26018282,3577.5,3577.4,2.79525]
[1732840948371,2.79494,3577.9,3577.4,2.79525]
[1732840948540,0.26018356,3577.8,3577.4,2.79525]
[1732840948739,0.26018356,3577.7,3577.4,2.79525]
[1732840948934,3.80160177,3577.9,3577.4,2.79525]
[1732840949232,0.26021077,3577.8,3577.5,2.79524]
[1732840949459,3.10939435,3578.1,3577.5,2.79518]
[1732840949685,0.26016698,3578.0,3577.5,2.79518]
[1732840950151,0.26016698,3578.0,3577.6,2.79516]
[1732840950348,3.10939435,3578.1,3577.6,2.79516]
[1732840950578,5.90420435,3578.1,3577.4,2.79527]
[1732840950788,5.90420435,3578.1,3577.5,2.79521]
[1732840951293,3.10939435,3578.1,3577.6,2.79512]
[1732840951476,3.10939435,3578.1,3577.7,2.79504]
[1732840952711,0.55,3578.3,3577.8,2.795]
[1732840952985,0.81020219,3578.3,3577.8,2.795]
[1732840953491,0.81020219,3578.3,3577.6,2.79515]
[1732840953695,0.81020219,3578.3,3577.7,2.84112572]
[1732840953992,0.81020219,3578.3,3577.8,2.79499]
[1732840953993,3.34462,3578.3,3577.8,2.79499]
[1732840954552,3.34462,3578.3,3577.9,0.04605572]
[1732840954752,0.55,3578.4,3577.9,2.84093572]
[1732840955053,0.55,3578.2,3577.9,0.04605572]
[1732840955256,3.34473,3578.2,3577.6,2.79511]
[1732840955490,3.34473,3578.2,3577.7,0.04605572]
[1732840955694,3.34473,3578.2,3577.6,2.79511]
[1732840955900,3.34473,3578.2,3577.7,0.04396228]
[1732840956057,2.79454,3578.4,3577.9,2.79492]
[1732840956399,0.81037557,3578.3,3578.0,0.04396228]
[1732840956591,0.55,3578.3,3578.0,0.04396228]
[1732840956892,3.07596346,3578.2,3578.1,0.04396228]
[1732840957079,3.07596346,3578.2,3577.5,2.79522]
[1732840957309,2.81559881,3578.2,3577.6,2.83911228]
[1732840958580,3.10939435,3578.1,3577.6,2.83911228]
[1732840958832,0.02089881,3578.0,3577.6,0.04396228]
[1732840959122,2.81576881,3578.0,3577.4,2.79527]
[1732840959294,2.81576881,3578.0,3577.5,0.04396228]
[1732840959618,3.10939435,3578.1,3577.5,2.79524]
[1732840959784,5.90417435,3578.1,3577.5,2.79524]
[1732840959983,0.02089881,3578.0,3577.6,0.04396228]
[1732840960385,5.90417435,3578.1,3577.6,0.04396228]
[1732840960581,2.79506,3577.8,3577.6,0.04396228]
[1732840960782,2.81595881,3577.8,3577.6,0.04396228]
[1732840961016,0.788,3577.9,3577.4,2.79525]
[1732840961184,3.58294,3577.9,3577.7,0.04396228]
[1732840961384,3.58294,3577.9,3577.4,2.79525]
[1732840961607,4.13294,3577.9,3577.8,0.04196399]
[1732840961813,5.36973589,3577.9,3577.2,3.61061]
[1732840962012,5.10948867,3577.9,3577.8,0.04196399]
[1732840962215,0.55,3577.7,3576.1,0.7812]
[1732840962419,2.79541,3577.3,3576.7,2.79584]
[1732840963088,0.4337622,3578.3,3577.4,0.8198]
[1732840963291,0.4163718,3578.3,3578.2,2.7947]
[1732840963487,0.2602632,3578.5,3578.4,2.79454]
[1732840963730,3.34615362,3579.2,3578.4,2.79454]
[1732840963938,2.79423,3578.8,3578.2,2.79469]
[1732840966453,5.90349435,3579.0,3578.1,0.8198]
[1732840966740,3.10939435,3579.0,3578.5,2.79446]
[1732840967545,3.10939435,3579.0,3578.6,2.79433]
[1732840967746,2.79397,3579.2,3578.6,2.79433]
[1732840968038,3.10939435,3579.4,3578.9,2.79415]
[1732840971769,0.55,3579.6,3579.1,2.79395]
[1732840971936,3.34361,3579.6,3579.0,2.79407]
[1732840972345,3.7823,3579.7,3579.0,2.79407]
[1732840972346,3.7823,3579.7,3579.1,2.79399]
[1732840972845,6.5759,3579.7,3578.9,2.79414]
[1732840973163,2.79369,3579.5,3578.9,2.79414]
[1732840973539,2.7936,3579.6,3578.9,2.79414]
[1732840973742,2.7936,3579.6,3579.0,2.79401]
[1732840974056,2.7936,3579.6,3579.1,0.04196399]
[1732840974254,2.81458881,3579.5,3579.1,0.04196399]
[1732840974458,2.79369,3579.5,3578.8,0.8033]
[1732840974628,2.79369,3579.5,3578.9,2.83611399]
[1732840976373,2.79387,3579.3,3578.9,0.04196399]
[1732840976533,6.45346435,3579.0,3578.9,0.04196399]
[1732840976732,6.45346435,3579.0,3578.3,2.79457]
[1732840976929,6.45346435,3579.0,3578.4,0.04196399]
[1732840977576,2.79445,3578.6,3578.0,2.79485]
[1732840977728,2.79445,3578.6,3578.5,0.04196399]
[1732840977926,2.79445,3578.6,3578.0,3.154075]
[1732840978245,2.79437,3578.7,3578.1,2.83673399]
[1732840978449,2.79437,3578.7,3578.1,0.04196399]
[1732840978630,4.42219435,3579.0,3578.1,0.04196399]
[1732840978829,2.79447,3578.5,3578.1,0.04196399]
[1732840979932,2.79439,3578.6,3578.1,0.04196399]
[1732840980159,2.79431,3578.7,3578.1,2.83673399]
[1732840980438,2.7944,3578.6,3578.1,0.04196399]
[1732840980833,2.79448,3578.5,3578.1,0.04196399]
[1732840981544,2.79448,3578.5,3577.9,3.59233]
[1732840981750,2.79448,3578.5,3578.2,0.04196399]
[1732840982080,2.79448,3578.5,3578.3,0.04196399]
[1732840982285,2.79448,3578.5,3577.9,4.28805356]
[1732840982493,2.79448,3578.5,3578.4,0.04196399]
[1732840982694,2.79448,3578.5,3577.9,4.28805356]
[1732840982995,2.79448,3578.5,3578.4,0.04196399]
[1732840983191,2.79448,3578.5,3577.9,4.28805356]
[1732840983704,2.79448,3578.5,3578.0,0.04196399]
[1732840984799,2.79432,3578.7,3578.0,0.81145631]
[1732840985001,2.79432,3578.7,3578.1,2.7947]
[1732840985203,3.34416,3578.9,3578.3,2.79457]
[1732840985204,2.79416,3578.9,3578.3,2.79457]
[1732840985392,2.79416,3578.9,3578.4,2.79453]
[1732840985709,2.79416,3578.9,3578.4,2.83649399]
[1732840986059,3.87219435,3579.0,3578.4,2.83649399]
[1732840986263,7.1342995,3582.7,3578.7,2.79424]
[1732840986264,0.55,3579.2,3578.7,2.79424]
[1732840986457,2.79392,3579.2,3578.5,3.57211]
[1732840986662,2.794,3579.1,3578.6,2.83634399]
[1732840987001,2.7943,3578.8,3578.6,0.04196399]
[1732840987193,3.48693824,3578.7,3578.6,0.04196399]
[1732840987406,2.79459,3578.4,3577.9,0.78]
[1732840987604,5.90379435,3578.6,3578.0,2.79485]
[1732840987793,5.90379435,3578.6,3578.0,2.83681399]
[1732840989023,2.79448,3578.5,3578.0,0.04196399]
[1732840989190,2.79455,3578.4,3578.0,0.04196399]
[1732840989717,0.8136,3578.9,3578.2,2.79465]
[1732840989919,3.8136,3578.9,3578.4,2.79453]
[1732840990324,5.90349435,3579.0,3578.5,0.752]
[1732840990620,2.79393,3579.2,3578.7,2.7943]
[1732840990818,2.79393,3579.2,3578.5,3.58837399]
[1732840990995,2.79393,3579.2,3578.5,3.54641]
[1732840991179,2.79393,3579.2,3578.6,0.04196399]
[1732840991580,5.90318435,3579.4,3578.8,2.79422]
[1732840991811,3.55,3579.3,3578.8,2.79422]
[1732840992012,2.794,3579.1,3578.6,2.79436]
[1732840992180,2.794,3579.1,3578.9,0.04196399]
[1732840992381,3.34389,3579.3,3578.7,2.79428]
[1732840992891,0.55,3579.3,3578.9,2.79414]
[1732840993096,0.55,3579.3,3578.8,0.04196399]
[1732840993292,0.55,3579.3,3578.7,2.79428]
[1732840993495,3.34391,3579.3,3578.9,0.04196399]
[1732840993687,0.55,3579.3,3578.9,2.79413]
[1732840993883,0.55,3579.3,3579.0,0.04196399]
[1732840994114,3.10939435,3579.4,3579.0,0.04196399]
[1732840994285,0.55,3579.5,3579.1,0.7804]
[1732840994720,0.55,3579.5,3579.2,0.04196399]
[1732840995658,3.34369,3579.5,3579.2,0.04196399]
[1732840995859,0.55,3579.5,3579.2,0.04196399]
[1732840996040,2.79376,3579.4,3579.2,0.04196399]
[1732840996415,2.79376,3579.4,3578.8,3.61742]
[1732840996957,2.79376,3579.4,3578.9,0.04196399]
[1732840998512,2.81478881,3579.3,3578.9,0.04196399]
[1732840998713,2.794,3579.1,3578.9,0.04196399]
[1732840998962,2.794,3579.1,3578.6,2.79438]
[1732840999168,2.794,3579.1,3579.0,0.04196399]
[1732840999349,2.794,3579.1,3578.6,2.79438]
[1732840999715,5.90318435,3579.4,3578.8,2.79418]
[1732840999922,2.7936,3579.7,3579.1,0.7942]
[1732841000150,3.10939435,3579.8,3579.3,2.79381]
[1732841000318,5.90284435,3579.8,3579.3,2.79381]
[1732841000852,5.90284435,3579.8,3579.4,0.04196399]
[1732841002220,5.90284435,3579.8,3579.2,2.79387]
[1732841002717,5.90284435,3579.8,3579.3,0.04196399]
[1732841002933,5.90284435,3579.8,3579.2,2.79387]
[1732841003131,5.90284435,3579.8,3579.4,0.04196399]
[1732841003332,5.90284435,3579.8,3579.2,2.79387]
[1732841003546,5.90284435,3579.8,3579.5,0.04196399]
[1732841003746,5.90258435,3580.2,3579.5,2.83564399]
[1732841003946,2.79334,3580.0,3579.6,0.8125]
[1732841004151,0.02089881,3579.9,3579.6,0.8125]
[1732841004352,5.90258435,3580.2,3579.7,0.04196399]
[1732841004574,5.90258435,3580.2,3579.6,0.8125]
[1732841004739,5.90258435,3580.2,3579.8,0.04196399]
[1732841004938,5.90258435,3580.2,3579.6,0.8125]
[1732841005139,5.90258435,3580.2,3579.9,0.04196399]
[1732841005335,5.90258435,3580.2,3579.6,0.8125]
[1732841005660,2.81413881,3580.1,3580.0,0.04196399]
[1732841005817,0.02089881,3580.1,3579.4,2.79369]
[1732841006020,5.90258435,3580.2,3579.5,3.149689]
[1732841006275,5.90258435,3580.2,3579.6,2.79357]
[1732841006859,5.90258435,3580.2,3579.7,0.04196399]
[1732841007273,5.90258435,3580.2,3579.6,2.79357]
[1732841007768,5.90258435,3580.2,3579.7,0.04196399]
[1732841007937,5.90258435,3580.2,3579.6,2.79357]
[1732841008133,5.90258435,3580.2,3579.8,0.04196399]
[1732841008463,5.90258435,3580.2,3579.7,0.8181]
[1732841008621,5.90258435,3580.2,3579.9,0.04196399]
[1732841008821,5.90258435,3580.2,3579.7,3.61162]
[1732841009023,5.90258435,3580.2,3580.0,0.04196399]
[1732841009322,5.90258435,3580.2,3580.1,0.04196399]
[1732841009527,5.90258435,3580.2,3579.7,3.61162]
[1732841009876,5.90258435,3580.2,3580.1,0.04196399]
[1732841010178,3.10939435,3580.2,3580.1,0.04196399]
[1732841010468,3.10939435,3580.2,3579.7,2.79346]
[1732841010675,3.10939435,3580.2,3580.1,0.04196399]
[1732841010826,3.10939435,3580.2,3579.8,3.1912919]
[1732841011026,3.10939435,3580.2,3580.1,0.04196399]
[1732841011223,3.10939435,3580.2,3579.7,2.79346]
[1732841011430,3.10939435,3580.2,3580.1,0.04196399]
[1732841011628,3.10939435,3580.2,3579.7,2.79346]
[1732841012149,3.10939435,3580.2,3579.8,2.83534399]
[1732841013067,3.10939435,3580.2,3579.8,0.04196399]
[1732841013388,3.10939435,3580.2,3579.7,3.20759259]
[1732841013540,3.10939435,3580.2,3579.9,0.04196399]
[1732841013879,3.10939435,3580.2,3579.7,2.7935]
[1732841014077,3.10939435,3580.2,3580.0,0.04196399]
[1732841014280,3.10939435,3580.2,3579.7,2.7935]
[1732841014439,3.10939435,3580.2,3580.1,0.04196399]
[1732841014639,3.10939435,3580.2,3579.7,2.7935]
[1732841014879,3.10939435,3580.2,3580.1,0.04196399]
[1732841015084,3.10939435,3580.2,3579.7,2.7935]
[1732841015239,3.10939435,3580.2,3580.1,0.04005654]
[1732841015440,3.10939435,3580.2,3579.7,2.7935]
[1732841015675,3.10939435,3580.2,3580.1,0.04005654]
[1732841016182,3.10939435,3580.2,3579.7,2.7935]
[1732841016341,3.58496,3580.5,3580.0,2.79329]
[1732841016836,2.79296,3580.5,3580.1,0.04005654]
[1732841017179,3.10939435,3580.6,3580.1,0.04005654]
[1732841017180,3.10939435,3580.6,3580.2,3.57749]
[1732841017383,2.81386881,3580.5,3580.0,0.7844]
[1732841017580,2.81386881,3580.5,3580.1,0.04005654]
[1732841017935,2.79306,3580.3,3579.7,3.61901]
[1732841018142,2.79306,3580.3,3579.8,0.03894686]
[1732841018343,0.02089881,3580.2,3579.7,3.61901]
[1732841018564,0.02089881,3580.2,3579.8,0.03894686]
[1732841018767,0.02089881,3580.2,3579.8,2.79344]
[1732841018983,2.79306,3580.3,3579.9,0.03894686]
[1732841019155,5.5859,3580.5,3579.9,2.83231686]
[1732841019354,2.79292,3580.5,3579.9,2.83231686]
[1732841019567,2.79301,3580.4,3579.9,0.03894686]
[1732841019770,2.79301,3580.4,3579.7,0.8255]
[1732841019986,2.79301,3580.4,3579.9,2.79337]
[1732841020496,5.90221435,3580.6,3580.1,2.79321]
[1732841020974,5.90221435,3580.6,3580.2,0.03894686]
[1732841021345,3.10939435,3580.6,3580.2,0.03894686]
[1732841022678,5.90227435,3580.6,3580.2,0.03894686]
[1732841023092,5.90227435,3580.6,3580.0,2.79327]
[1732841023093,2.79306,3580.3,3579.7,3.61898]
[1732841023389,3.10939435,3580.6,3579.7,3.61898]
[1732841023390,2.79314,3580.2,3579.7,3.61898]
[1732841023554,2.79294,3580.5,3579.7,3.61898]
[1732841023895,2.79306,3580.3,3579.7,6.41245]
[1732841024094,3.10939435,3580.6,3579.7,0.8255]
[1732841024242,3.10939435,3579.8,3578.5,0.06059427]
[1732841024604,3.02089881,3579.7,3578.7,0.7717]
[1732841024757,5.90286435,3579.8,3579.1,0.8283]
[1732841024965,3.8281,3580.1,3579.1,0.8283]
[1732841025195,3.8281,3580.1,3579.4,2.79375]
[1732841025352,3.8281,3580.1,3579.3,2.79384]
[1732841025542,2.79338,3579.9,3579.4,2.79375]
[1732841026058,2.79338,3579.9,3579.3,2.79384]
[1732841026397,0.02089881,3579.8,3579.3,2.79377]
[1732841026580,0.02089881,3579.8,3579.4,0.6778272]
[1732841026759,2.79338,3579.9,3579.4,3.4715772]
[1732841027088,3.0,3580.1,3579.5,0.8283]
[1732841027289,5.90256435,3580.2,3579.5,3.62195]
[1732841028481,2.7933,3580.0,3579.5,3.62195]
[1732841028791,2.7933,3580.0,3579.5,0.8283]
[1732841029096,2.79338,3579.9,3579.5,0.8283]
[1732841029690,3.10939435,3580.2,3579.5,4.36752192]
[1732841029902,5.90257435,3580.2,3579.6,2.79355]
[1732841030679,5.90257435,3580.2,3579.7,2.79352]
[1732841030996,5.90257435,3580.2,3579.5,4.36752192]
[1732841031153,5.90257435,3580.2,3579.6,2.79358]
[1732841031465,5.90257435,3580.2,3579.7,2.79351]
[1732841032293,3.10939435,3580.2,3579.7,2.79351]
[1732841032857,5.90253435,3580.2,3579.7,2.79351]
[1732841033300,3.90929435,3580.6,3579.6,0.71890372]
[1732841033503,0.26132779,3580.5,3580.0,2.79328]
[1732841033676,6.70216435,3580.6,3580.0,2.79328]
[1732841033859,0.26133651,3580.5,3580.0,2.79328]
[1732841034061,6.70216435,3580.6,3580.1,0.03540623]
[1732841034376,0.26133609,3580.5,3580.1,0.03540623]
[1732841034562,6.70216435,3580.6,3580.1,0.03540623]
[1732841034757,2.79298,3580.4,3580.1,0.03540623]
[1732841034961,2.81395881,3580.3,3580.1,0.03540623]
[1732841035172,2.79314,3580.2,3579.7,2.79347]
[1732841035376,0.02089881,3580.1,3579.8,0.03540623]
[1732841035608,3.90929435,3580.6,3579.8,0.03540623]
[1732841035609,2.79303,3580.4,3579.8,0.03540623]
[1732841035900,2.79306,3580.3,3579.8,3.510424]
[1732841036109,2.81394881,3580.4,3579.9,0.03540623]
[1732841036565,2.79311,3580.3,3579.9,0.03540623]
[1732841036761,2.81403881,3580.2,3579.7,2.79351]
[1732841036990,2.79303,3580.4,3579.8,0.03540623]
[1732841037203,2.79303,3580.4,3579.8,2.82882623]
[1732841037923,2.79303,3580.4,3579.9,2.79336]
[1732841038400,6.70211435,3580.6,3580.0,0.03540623]
[1732841038577,0.20072358,3580.5,3580.0,0.03540623]
[1732841038769,2.79295,3580.5,3580.1,0.7686]
[1732841039414,2.79295,3580.5,3580.2,0.03540623]
[1732841040406,2.79298,3580.4,3580.2,0.03540623]
[1732841040613,2.81395881,3580.3,3580.2,0.03540623]
[1732841041088,2.79334,3580.0,3579.4,3.56235]
[1732841041280,0.02089881,3579.9,3579.4,4.197981]
[1732841041795,0.02089881,3579.9,3579.4,6.991681]
[1732841042311,2.79345,3579.8,3579.1,2.79394]
[1732841042480,3.10939435,3580.0,3579.1,2.79394]
[1732841042481,2.79358,3579.7,3579.1,3.60234]
[1732841042812,2.79342,3579.9,3579.3,2.79378]
[1732841042968,5.90271435,3580.0,3579.2,2.79391]
[1732841043306,2.79353,3579.7,3579.2,2.79391]
[1732841043506,2.81450881,3579.6,3579.2,0.69439751]
[1732841043806,2.79373,3579.5,3579.1,0.8084]
[1732841044111,0.02089881,3579.4,3579.1,0.8084]
[1732841044267,2.79373,3579.5,3579.1,0.8084]
[1732841045096,0.02089881,3579.6,3579.1,0.8084]
[1732841045419,0.8012,3579.5,3578.8,0.7654]
[1732841045720,2.79385,3579.3,3578.8,1.45700065]
[1732841045865,0.8012,3579.5,3579.0,2.79406]
[1732841046067,3.10939435,3579.6,3579.1,2.79398]
[1732841046278,5.90302435,3579.6,3578.8,4.25120065]
[1732841046565,5.90303435,3579.6,3579.0,2.79405]
[1732841047204,5.90303435,3579.6,3579.1,2.79398]
[1732841047413,5.90303435,3579.6,3579.0,2.79405]
[1732841047565,5.90303435,3579.6,3578.9,0.48131872]
[1732841047566,2.79378,3579.4,3578.9,2.79414]
[1732841047766,5.90303435,3579.6,3578.8,3.55961]
[1732841048010,2.7937,3579.5,3578.9,0.355961]
[1732841048892,5.90303435,3579.6,3579.0,2.79405]
[1732841049093,5.90303435,3579.6,3579.0,2.82945623]
[1732841049808,2.79377,3579.4,3579.0,0.03540623]
[1732841050013,2.81474881,3579.3,3579.0,0.03540623]
[1732841050377,2.79374,3579.5,3579.0,0.03540623]
[1732841052013,0.02089881,3579.4,3579.0,0.03540623]
[1732841052319,2.79399,3579.1,3579.0,0.03540623]
[1732841052679,2.79399,3579.1,3578.5,2.79444]
[1732841053019,2.79399,3579.1,3578.5,2.79445]
[1732841053678,2.79399,3579.1,3578.5,0.637236]
[1732841053990,2.79399,3579.1,3578.6,2.79437]
[1732841054170,3.93099435,3579.2,3578.4,0.7834]
[1732841054171,0.02089881,3579.0,3578.4,0.7834]
[1732841054380,3.65939435,3578.8,3577.8,0.8317]
[1732841054615,2.79471,3578.2,3577.8,0.8317]
[1732841054821,2.79446,3578.5,3577.8,0.8317]
[1732841055031,2.79446,3578.5,3577.9,0.36268]
[1732841055234,2.79458,3578.4,3577.9,0.36268]
[1732841056239,0.55,3578.5,3577.5,0.8238]
[1732841056396,2.79467,3578.3,3577.5,0.8238]
[1732841056597,2.79482,3578.1,3577.5,3.61903]
[1732841056931,2.79482,3578.1,3577.5,0.8238]
[1732841057146,2.79482,3578.1,3577.6,2.79514]
[1732841057294,2.79467,3578.3,3577.7,2.79503]
[1732841057489,2.81560881,3578.2,3577.7,2.79503]
[1732841057797,0.7649,3578.1,3577.3,2.79537]
[1732841058123,0.7649,3578.1,3577.4,2.79531]
[1732841059035,0.02089881,3578.0,3577.3,2.79539]
[1732841059199,0.02089881,3578.0,3577.3,3.4941258]
[1732841060303,0.02089881,3578.0,3577.2,0.8299]
[1732841060304,2.79501,3577.8,3577.2,0.8299]
[1732841060500,2.79501,3577.8,3577.1,2.79554]
[1732841060501,0.02089881,3577.7,3577.1,2.79554]
[1732841060835,2.79493,3577.9,3577.2,2.79548]
[1732841062023,2.81582881,3577.9,3577.1,2.79554]
[1732841062226,0.55,3577.9,3577.3,2.7954]
[1732841062452,3.58773,3578.7,3577.5,0.775]
[1732841062622,3.58747,3579.0,3578.3,2.79456]
[1732841062824,3.58747,3579.0,3578.3,3.56956]
[1732841063053,0.7934,3579.0,3578.3,0.775]
[1732841063215,0.7934,3579.0,3578.0,0.7626]
[1732841063216,2.7944,3578.6,3578.0,0.7626]
[1732841063420,2.79447,3578.5,3578.0,2.79485]
[1732841063694,2.79437,3578.7,3578.1,2.79475]
[1732841064156,2.79437,3578.7,3578.2,0.03379686]
[1732841064357,0.55,3578.6,3578.2,0.03379686]
[1732841064720,0.55,3578.9,3578.4,2.79448]
[1732841064921,3.55,3578.9,3578.4,2.79448]
[1732841065121,0.55,3578.9,3578.4,2.79448]
[1732841065661,0.55,3578.9,3578.5,0.03379686]
[1732841065958,3.34416,3578.9,3578.5,0.03379686]
[1732841066124,0.55,3578.9,3578.4,2.7945]
[1732841066340,0.55,3578.9,3578.6,0.03379686]
[1732841066627,0.55,3578.9,3578.4,2.7945]
[1732841066628,0.55,3578.9,3578.7,0.03379686]
[1732841066832,3.34415,3578.9,3578.3,3.5572]
[1732841067065,3.34415,3578.9,3578.4,0.03379686]
[1732841067276,2.79424,3578.8,3578.4,0.03379686]
[1732841068031,0.55,3578.9,3578.4,0.03379686]
[1732841068231,0.7934,3579.0,3578.5,2.79441]
[1732841068429,0.7934,3579.0,3578.0,0.8109]
[1732841068727,3.0,3579.1,3576.6,0.1]
[1732841068728,6.1735,3578.9,3578.2,2.79467]
[1732841068934,0.55,3578.7,3578.2,2.79467]
[1732841069247,3.55,3578.7,3578.3,0.03379686]
[1732841070674,2.81534881,3578.6,3578.3,0.03379686]
[1732841071175,2.81534881,3578.6,3578.0,2.79484]
[1732841071341,3.55,3578.7,3578.4,0.03379686]
[1732841071546,3.55,3578.7,3578.1,2.79475]
[1732841071797,3.55,3578.7,3578.5,0.03379686]
[1732841072077,0.02089881,3578.6,3578.1,2.79475]
[1732841072263,2.81533881,3578.6,3578.0,2.79484]
[1732841072459,2.79447,3578.5,3578.0,2.79484]
[1732841072678,0.02089881,3578.4,3578.0,2.79484]
[1732841072838,2.81528881,3578.6,3578.0,2.79484]
[1732841074460,2.79439,3578.6,3578.0,2.79484]
[1732841074709,2.7946,3578.4,3577.8,2.795]
[1732841074995,2.79462,3578.3,3577.8,2.795]
[1732841075214,0.7895,3578.2,3577.8,2.795]
[1732841075509,0.7895,3578.2,3577.6,3.61135]
[1732841075510,0.7895,3578.2,3577.6,2.79514]
[1732841075654,3.5842,3578.2,3577.6,2.79514]
[1732841076053,0.7895,3578.2,3577.6,2.79514]
[1732841076291,0.7895,3578.2,3577.4,0.27954]
[1732841076621,0.55,3578.3,3577.8,2.79493]
[1732841077619,3.34463,3578.3,3577.8,2.79493]
[1732841077925,0.02089881,3578.2,3577.1,0.8048]
[1732841078093,2.79498,3577.9,3577.3,2.79538]
[1732841078296,2.81594881,3577.8,3577.1,3.60036]
[1732841078625,2.81594881,3577.8,3577.1,4.239963]
[1732841078805,2.79548,3577.2,3576.3,0.8236]
[1732841079011,0.8061,3577.0,3576.5,2.79602]
[1732841079316,2.7954,3577.3,3576.4,2.79605]
[1732841079527,2.7956,3577.1,3576.4,3.46684678]
[1732841079678,0.55,3577.3,3576.4,3.46684678]
[1732841079679,2.79554,3577.2,3576.4,3.46684678]
[1732841079891,2.79554,3577.2,3576.6,2.79594]
[1732841080121,2.79558,3577.1,3576.4,3.46684678]
[1732841080626,2.79558,3577.1,3576.5,2.79602]
[1732841080829,2.79558,3577.1,3576.5,3.50466668]
[1732841080991,2.79565,3577.0,3576.5,0.70864668]
[1732841081194,2.79586,3576.8,3576.0,2.79642]
[1732841081423,2.81681881,3576.7,3576.1,2.79631]
[1732841081607,2.79592,3576.7,3576.1,2.79631]
[1732841082043,0.02089881,3576.6,3576.1,2.79631]
[1732841082545,0.02089881,3576.6,3576.2,2.79625]
[1732841082752,0.8307,3576.8,3576.2,2.79625]
[1732841083127,3.62649,3576.8,3576.2,2.79625]
[1732841083662,2.796,3576.6,3576.0,2.79641]
[1732841083837,2.79608,3576.5,3575.8,2.79652]
[1732841084032,2.79608,3576.5,3575.7,2.79662]
[1732841084033,0.02089881,3576.4,3575.7,2.79662]
[1732841084254,2.79594,3576.7,3576.0,2.79641]
[1732841084768,2.79574,3576.9,3576.2,2.79626]
[1732841084971,0.7519,3577.1,3576.1,0.7729]
[1732841085169,2.79541,3577.3,3576.7,3.56872]
[1732841085464,2.79528,3577.5,3576.9,2.79564]
[1732841085649,2.79528,3577.5,3576.8,2.79573]
[1732841085650,3.54702,3577.7,3576.8,2.79573]
[1732841085852,2.79522,3577.6,3576.9,2.7957]
[1732841086064,2.79519,3577.6,3576.7,0.7729]
[1732841086363,0.7519,3577.7,3576.7,3.925637]
[1732841086575,2.79551,3577.2,3576.7,1.129797]
[1732841086862,0.8277,3577.0,3576.4,2.79605]
[1732841087273,0.8277,3577.0,3576.6,2.7959]
[1732841087643,0.8277,3577.0,3576.4,2.79603]
[1732841087831,0.8277,3577.0,3576.5,2.79597]
[1732841088366,2.79556,3577.1,3576.5,2.79597]
[1732841088667,2.79556,3577.1,3576.6,2.79593]
[1732841088872,2.79556,3577.1,3576.5,2.79597]
[1732841089039,2.79541,3577.3,3576.6,2.79594]
[1732841089244,2.79548,3577.2,3576.6,2.79594]
[1732841089551,0.02089881,3577.1,3576.6,2.79594]
[1732841090069,2.79548,3577.2,3576.6,2.79594]
[1732841090928,0.02089881,3577.1,3576.6,3.49943319]
[1732841091291,2.79533,3577.4,3576.8,2.79574]
[1732841091435,2.79533,3577.4,3576.9,2.79569]
[1732841091634,2.79533,3577.4,3576.9,3.58689]
[1732841091836,2.7952,3577.6,3577.0,2.79558]
[1732841092080,3.62334,3577.8,3576.9,3.58689]
[1732841092081,2.79526,3577.5,3576.9,0.7912]
[1732841092275,2.81615881,3577.5,3576.9,3.58686]
[1732841092870,0.02089881,3577.4,3576.9,3.58686]
[1732841093066,2.79526,3577.5,3576.9,3.58686]
[1732841093263,2.79526,3577.5,3577.0,2.79563]
[1732841094273,5.79511,3577.7,3577.1,2.79552]
[1732841094483,2.79517,3577.6,3577.1,2.79552]
[1732841095229,2.79517,3577.6,3576.9,0.7912]
[1732841095535,2.79517,3577.6,3577.0,2.79563]
[1732841096872,0.02089881,3577.5,3576.8,2.79576]
[1732841097072,2.79552,3577.2,3576.6,3.59212]
[1732841097274,0.8105,3577.3,3576.8,2.79575]
[1732841098274,0.8105,3577.3,3576.9,2.79565]